{"text_format":"3","workbook":"xlsx","n_sheets":4,"sheets":["Start","Bryllupsbudget","Tøj-Reception-Musik-Billeder","Dekoration-Blomster-Gaver-Rejse"],"not_rendered":{"charts":1,"defined_names":22},"read":"whole","date_system":"1900"}

{"sheet":"Start","index":0,"n_rows":7,"n_cols":2,"rows_kept":7}
[null,"OM DENNE SKABELON"]
[null,"Brug denne skabelon til at holde styr på dine bryllupsudgifter."]
[null,"Angiv de anslået og faktisk udgifter for de forskellige kategorier i separate regneark."]
[null,"Oversigten og diagrammet over bryllupsbudgettet opdateres automatisk."]
[null,"Bemærk! "]
[null,"Der er yderligere vejledning at finde i kolonne A i hvert regneark. Denne tekst er skjult med vilje. Du kan fjerne tekst ved at markere kolonne A og derefter vælge Slet. For ikke længere at skjule tekst skal du markere kolonne A og derefter ændre skriftfarven."]
[null,"Hvis du vil vide mere om tabeller, skal du trykke på Skift og derefter F10, mens du er i en tabel, vælge indstillingen TABEL og derefter vælge ALTERNATIV TEKST."]

{"sheet":"Bryllupsbudget","index":1,"n_rows":19,"n_cols":6,"rows_kept":19,"merged":[[2,2,4,5],[18,2,42,5]]}
["Opret et bryllupsbudget i dette regneark. Angiv oplysninger i tabellerne i regnearket Tøj-Reception-Musik-Billeder og regnearket Dekoration-Blomster-Gaver-Rejse for at opdatere oversigten og diagrammet i det aktuelle regneark. I cellerne i denne kolonne vises en udførlig vejledning i, hvordan man bruger dette regneark. Mærkaten Bryllupsdato er i celle C1.",null,"Bryllupsdato:"]
["Angiv Bryllupsdato i celle C2. Dage tilbage beregnes automatisk i celle E2.",null,{"$f":"TODAY()+365","v":"2019-12-04"},"Dage tilbage:",{"$f":"C2-TODAY()","v":365}]
["Titlen på dette regneark vises i celle C3. Den næste vejledning er i celle A6.",null,"Oversigt over bryllupsbudget"]
[]
[]
["Tabellen Budgetoversigt, der starter i celle C6, opdateres automatisk. Den næste vejledning er i celle A19.",null,"KATEGORI","ANSLÅET","FAKTISK","OVER/UNDER"]
[null,null,"Tøj",{"$f":"Tøj_Total_ans","v":{"v":9490,"d":"9,490.00"}},{"$f":"Tøj_Total_fak","v":{"v":9770,"d":"9,770.00"}},{"$f":"BudgetOversigt[[#This Row],[ANSLÅET]]-BudgetOversigt[[#This Row],[FAKTISK]]","v":{"v":-280,"d":"-280.00"}}]
[null,null,"Reception",{"$f":"Reception_Total_ans","v":{"v":1050,"d":"1,050.00"}},{"$f":"Reception_Total_fak","v":{"v":928,"d":"928.00"}},{"$f":"BudgetOversigt[[#This Row],[ANSLÅET]]-BudgetOversigt[[#This Row],[FAKTISK]]","v":{"v":122,"d":"122.00"}}]
[null,null,"Musik",{"$f":"Musik_Underholdning_Total_ans","v":{"v":600,"d":"600.00"}},{"$f":"Musik_Underholdning_Total_fak","v":{"v":400,"d":"400.00"}},{"$f":"BudgetOversigt[[#This Row],[ANSLÅET]]-BudgetOversigt[[#This Row],[FAKTISK]]","v":{"v":200,"d":"200.00"}}]
[null,null,"Tryk",{"$f":"Tryk__Brevpapir_Total_ans","v":{"v":935,"d":"935.00"}},{"$f":"Tryk__Brevpapir_Total_fak","v":{"v":870,"d":"870.00"}},{"$f":"BudgetOversigt[[#This Row],[ANSLÅET]]-BudgetOversigt[[#This Row],[FAKTISK]]","v":{"v":65,"d":"65.00"}}]
[null,null,"Fotografering",{"$f":"Fotografering_Total_ans","v":{"v":1625,"d":"1,625.00"}},{"$f":"Fotografering_Total_fak","v":{"v":1575,"d":"1,575.00"}},{"$f":"BudgetOversigt[[#This Row],[ANSLÅET]]-BudgetOversigt[[#This Row],[FAKTISK]]","v":{"v":50,"d":"50.00"}}]
[null,null,"Dekorationer",{"$f":"Dekorationer_Total_ans","v":{"v":700,"d":"700.00"}},{"$f":"Dekorationer_Total_fak","v":{"v":720,"d":"720.00"}},{"$f":"BudgetOversigt[[#This Row],[ANSLÅET]]-BudgetOversigt[[#This Row],[FAKTISK]]","v":{"v":-20,"d":"-20.00"}}]
[null,null,"Blomster",{"$f":"Blomster_Total_ans","v":{"v":900,"d":"900.00"}},{"$f":"Blomster_Total_fak","v":{"v":850,"d":"850.00"}},{"$f":"BudgetOversigt[[#This Row],[ANSLÅET]]-BudgetOversigt[[#This Row],[FAKTISK]]","v":{"v":50,"d":"50.00"}}]
[null,null,"Gaver",{"$f":"Gaver_Total_ans","v":{"v":1345,"d":"1,345.00"}},{"$f":"Gaver_Total_fak","v":{"v":1075,"d":"1,075.00"}},{"$f":"BudgetOversigt[[#This Row],[ANSLÅET]]-BudgetOversigt[[#This Row],[FAKTISK]]","v":{"v":270,"d":"270.00"}}]
[null,null,"Rejser",{"$f":"Rejse_Transport_Total_ans","v":{"v":100,"d":"100.00"}},{"$f":"Rejse_Transport_Total_fak","v":{"v":165,"d":"165.00"}},{"$f":"BudgetOversigt[[#This Row],[ANSLÅET]]-BudgetOversigt[[#This Row],[FAKTISK]]","v":{"v":-65,"d":"-65.00"}}]
[null,null,"Andet",{"$f":"Andre_udgifter_Total_ans","v":{"v":885,"d":"885.00"}},{"$f":"Andre_udgifter_Total_fak","v":{"v":1021,"d":"1,021.00"}},{"$f":"BudgetOversigt[[#This Row],[ANSLÅET]]-BudgetOversigt[[#This Row],[FAKTISK]]","v":{"v":-136,"d":"-136.00"}}]
[null,null,"Udgifter i alt",{"$f":"SUBTOTAL(109,BudgetOversigt[ANSLÅET])","v":{"v":17630,"d":"17,630.00"}},{"$f":"SUBTOTAL(109,BudgetOversigt[FAKTISK])","v":{"v":17374,"d":"17,374.00"}},{"$f":"SUBTOTAL(109,BudgetOversigt[OVER/UNDER])","v":{"v":256,"d":"256.00"}}]
[]
["Cirkeldiagrammet i celle C19 opdateres automatisk.",null,"Cirkeldiagram med individuelle procentdele for hver kategori af udgifter vises i denne celle."]

{"sheet":"Tøj-Reception-Musik-Billeder","index":2,"n_rows":56,"n_cols":6,"rows_kept":56,"merged":[[16,1,16,4],[28,1,28,4],[29,1,29,4],[35,1,35,4],[48,1,48,4]]}
["Angiv de anslået og faktisk omkostninger for hver kategori i de respektive tabeller i dette regneark. Over/under-beløbet beregnes automatisk. Mærkaten Tøj er i cellen til højre. I cellerne i denne kolonne vises en udførlig vejledning i, hvordan man bruger dette regneark. Pil ned for at starte.","Tøj",{"$nulls":3}," "]
[" Angiv oplysninger i tabellen Tøj, der starter i cellen til højre. Den næste vejledning er i celle A18.","KATEGORI","ANSLÅET","FAKTISK","OVER/UNDER"," "]
[null,"Forlovelsesringe",{"v":1500,"d":"1,500.00"},{"v":1500,"d":"1,500.00"},{"$f":"'Tøj-Reception-Musik-Billeder'!$C3-'Tøj-Reception-Musik-Billeder'!$D3","v":{"v":0,"d":"0.00"}}]
[null,"Kommende ægtefælle 1 ring",{"v":2000,"d":"2,000.00"},{"v":2300,"d":"2,300.00"},{"$f":"'Tøj-Reception-Musik-Billeder'!$C4-'Tøj-Reception-Musik-Billeder'!$D4","v":{"v":-300,"d":"-300.00 "}}]
[null,"Kommende ægtefælle 1 kjole/smoking",{"v":3000,"d":"3,000.00"},{"v":2750,"d":"2,750.00"},{"$f":"'Tøj-Reception-Musik-Billeder'!$C5-'Tøj-Reception-Musik-Billeder'!$D5","v":{"v":250,"d":"250.00"}}]
[null,"Kommende ægtefælle 1 slør/hovedbeklædning",{"v":500,"d":"500.00"},{"v":500,"d":"500.00"},{"$f":"'Tøj-Reception-Musik-Billeder'!$C6-'Tøj-Reception-Musik-Billeder'!$D6","v":{"v":0,"d":"0.00"}}]
[null,"Kommende ægtefælle 1 sko",{"v":350,"d":"350.00"},{"v":300,"d":"300.00"},{"$f":"'Tøj-Reception-Musik-Billeder'!$C7-'Tøj-Reception-Musik-Billeder'!$D7","v":{"v":50,"d":"50.00"}}]
[null,"Kommende ægtefælle 1 smykker",{"v":400,"d":"400.00"},{"v":550,"d":"550.00"},{"$f":"'Tøj-Reception-Musik-Billeder'!$C8-'Tøj-Reception-Musik-Billeder'!$D8","v":{"v":-150,"d":"-150.00 "}}]
[null,"Kommende ægtefælle 1 strømper",{"v":20,"d":"20.00"},{"v":20,"d":"20.00"},{"$f":"'Tøj-Reception-Musik-Billeder'!$C9-'Tøj-Reception-Musik-Billeder'!$D9","v":{"v":0,"d":"0.00"}}]
[null,"Kommende ægtefælle 2 ring",{"v":300,"d":"300.00"},{"v":250,"d":"250.00"},{"$f":"'Tøj-Reception-Musik-Billeder'!$C10-'Tøj-Reception-Musik-Billeder'!$D10","v":{"v":50,"d":"50.00"}}]
[null,"Kommende ægtefælle 2 kjole/smoking",{"v":300,"d":"300.00"},{"v":350,"d":"350.00"},{"$f":"'Tøj-Reception-Musik-Billeder'!$C11-'Tøj-Reception-Musik-Billeder'!$D11","v":{"v":-50,"d":"-50.00 "}}]
[null,"Kommende ægtefælle 2 slør/hovedbeklædning",{"v":500,"d":"500.00"},{"v":500,"d":"500.00"},{"$f":"'Tøj-Reception-Musik-Billeder'!$C12-'Tøj-Reception-Musik-Billeder'!$D12","v":{"v":0,"d":"0.00"}}]
[null,"Kommende ægtefælle 2 sko",{"v":200,"d":"200.00"},{"v":175,"d":"175.00"},{"$f":"'Tøj-Reception-Musik-Billeder'!$C13-'Tøj-Reception-Musik-Billeder'!$D13","v":{"v":25,"d":"25.00"}}]
[null,"Kommende ægtefælle 2 smykker",{"v":400,"d":"400.00"},{"v":550,"d":"550.00"},{"$f":"'Tøj-Reception-Musik-Billeder'!$C14-'Tøj-Reception-Musik-Billeder'!$D14","v":{"v":-150,"d":"-150.00 "}}]
[null,"Kommende ægtefælle 2 strømper",{"v":20,"d":"20.00"},{"v":25,"d":"25.00"},{"$f":"'Tøj-Reception-Musik-Billeder'!$C15-'Tøj-Reception-Musik-Billeder'!$D15","v":{"v":-5,"d":"-5.00 "}}]
[null,"I alt for tøj",{"$f":"SUBTOTAL(109,Tøj[ANSLÅET])","v":{"v":9490,"d":"9,490.00"}},{"$f":"SUBTOTAL(109,Tøj[FAKTISK])","v":{"v":9770,"d":"9,770.00"}},{"$f":"SUBTOTAL(109,Tøj[OVER/UNDER])","v":{"v":-280,"d":"-280.00 "}}]
[]
["Mærkaten Reception er i cellen til højre.","Reception*"]
["I tabellen, der starter i cellen til højre, skal du angive receptionsomkostninger ekskl. omkostningerne til underholdning og dekorationer. Den næste vejledning er i celle A31.","KATEGORI","ANSLÅET","FAKTISK","OVER/UNDER"]
[null,"Lokalegebyrer",{"v":200,"d":"200.00"},{"v":150,"d":"150.00"},{"$f":"'Tøj-Reception-Musik-Billeder'!$C20-'Tøj-Reception-Musik-Billeder'!$D20","v":{"v":50,"d":"50.00"}}]
[null,"Borde og stole",{"v":100,"d":"100.00"},{"v":50,"d":"50.00"},{"$f":"'Tøj-Reception-Musik-Billeder'!$C21-'Tøj-Reception-Musik-Billeder'!$D21","v":{"v":50,"d":"50.00"}}]
[null,"Mad",{"v":0,"d":"0.00"},{"v":0,"d":"0.00"},{"$f":"'Tøj-Reception-Musik-Billeder'!$C22-'Tøj-Reception-Musik-Billeder'!$D22","v":{"v":0,"d":"0.00"}}]
[null,"Drikkevarer",{"v":0,"d":"0.00"},{"v":0,"d":"0.00"},{"$f":"'Tøj-Reception-Musik-Billeder'!$C23-'Tøj-Reception-Musik-Billeder'!$D23","v":{"v":0,"d":"0.00"}}]
[null,"Linned",{"v":0,"d":"0.00"},{"v":0,"d":"0.00"},{"$f":"'Tøj-Reception-Musik-Billeder'!$C24-'Tøj-Reception-Musik-Billeder'!$D24","v":{"v":0,"d":"0.00"}}]
[null,"Kage",{"v":700,"d":"700.00"},{"v":700,"d":"700.00"},{"$f":"'Tøj-Reception-Musik-Billeder'!$C25-'Tøj-Reception-Musik-Billeder'!$D25","v":{"v":0,"d":"0.00"}}]
[null,"Tjenester",{"v":50,"d":"50.00"},{"v":28,"d":"28.00"},{"$f":"'Tøj-Reception-Musik-Billeder'!$C26-'Tøj-Reception-Musik-Billeder'!$D26","v":{"v":22,"d":"22.00"}}]
[null,"Personale og drikkepenge",{"v":0,"d":"0.00"},{"v":0,"d":"0.00"},{"$f":"'Tøj-Reception-Musik-Billeder'!$C27-'Tøj-Reception-Musik-Billeder'!$D27","v":{"v":0,"d":"0.00"}}]
[null,"I alt for reception",{"$f":"SUBTOTAL(109,Reception[ANSLÅET])","v":{"v":1050,"d":"1,050.00"}},{"$f":"SUBTOTAL(109,Reception[FAKTISK])","v":{"v":928,"d":"928.00"}},{"$f":"SUBTOTAL(109,Reception[OVER/UNDER])","v":{"v":122,"d":"122.00"}}]
[null,"* ekskl. underholdning og dekorationer"]
[]
["Mærkaten for musik eller underholdning er i cellen til højre.","Musik/underholdning"]
["Angiv oplysninger i tabellen Musik, der starter i cellen til højre. Den næste vejledning er i celle A37.","KATEGORI","ANSLÅET","FAKTISK","OVER/UNDER"]
[null,"Musikere til ceremonien",{"v":400,"d":"400.00"},{"v":400,"d":"400.00"},{"$f":"'Tøj-Reception-Musik-Billeder'!$C33-'Tøj-Reception-Musik-Billeder'!$D33","v":{"v":0,"d":"0.00"}}]
[null,"Band/DJ til receptionen",{"v":200,"d":"200.00"},{"v":0,"d":"0.00"},{"$f":"'Tøj-Reception-Musik-Billeder'!$C34-'Tøj-Reception-Musik-Billeder'!$D34","v":{"v":200,"d":"200.00"}}]
[null,"I alt for musik/underholdning",{"$f":"SUBTOTAL(109,Musik[ANSLÅET])","v":{"v":600,"d":"600.00"}},{"$f":"SUBTOTAL(109,Musik[FAKTISK])","v":{"v":400,"d":"400.00"}},{"$f":"SUBTOTAL(109,Musik[OVER/UNDER])","v":{"v":200,"d":"200.00"}}]
[]
["Mærkaten for tryk eller brevpapir er i cellen til højre.","Tryk/brevpapir"]
["Angiv oplysninger i tabellen Tryk, der starter i cellen til højre. Den næste vejledning er i celle A50.","KATEGORI","ANSLÅET","FAKTISK","OVER/UNDER"]
[null,"Invitationer",{"v":500,"d":"500.00"},{"v":450,"d":"450.00"},{"$f":"'Tøj-Reception-Musik-Billeder'!$C39-'Tøj-Reception-Musik-Billeder'!$D39","v":{"v":50,"d":"50.00"}}]
[null,"Bekendtgørelser",{"v":200,"d":"200.00"},{"v":175,"d":"175.00"},{"$f":"'Tøj-Reception-Musik-Billeder'!$C40-'Tøj-Reception-Musik-Billeder'!$D40","v":{"v":25,"d":"25.00"}}]
[null,"Takkekort",{"v":100,"d":"100.00"},{"v":100,"d":"100.00"},{"$f":"'Tøj-Reception-Musik-Billeder'!$C41-'Tøj-Reception-Musik-Billeder'!$D41","v":{"v":0,"d":"0.00"}}]
[null,"Personlige tryksager",{"v":0,"d":"0.00"},{"v":0,"d":"0.00"},{"$f":"'Tøj-Reception-Musik-Billeder'!$C42-'Tøj-Reception-Musik-Billeder'!$D42","v":{"v":0,"d":"0.00"}}]
[null,"Gæstebog",{"v":25,"d":"25.00"},{"v":25,"d":"25.00"},{"$f":"'Tøj-Reception-Musik-Billeder'!$C43-'Tøj-Reception-Musik-Billeder'!$D43","v":{"v":0,"d":"0.00"}}]
[null,"Programmer",{"v":75,"d":"75.00"},{"v":80,"d":"80.00"},{"$f":"'Tøj-Reception-Musik-Billeder'!$C44-'Tøj-Reception-Musik-Billeder'!$D44","v":{"v":-5,"d":"-5.00 "}}]
[null,"Receptionsservietter",{"v":35,"d":"35.00"},{"v":40,"d":"40.00"},{"$f":"'Tøj-Reception-Musik-Billeder'!$C45-'Tøj-Reception-Musik-Billeder'!$D45","v":{"v":-5,"d":"-5.00 "}}]
[null,"Tændstikmappe",{"v":0,"d":"0.00"},{"v":0,"d":"0.00"},{"$f":"'Tøj-Reception-Musik-Billeder'!$C46-'Tøj-Reception-Musik-Billeder'!$D46","v":{"v":0,"d":"0.00"}}]
[null,"Kalligrafi",{"v":0,"d":"0.00"},{"v":0,"d":"0.00"},{"$f":"'Tøj-Reception-Musik-Billeder'!$C47-'Tøj-Reception-Musik-Billeder'!$D47","v":{"v":0,"d":"0.00"}}]
[null,"I alt for tryk/brevpapir",{"$f":"SUBTOTAL(109,Tryk[ANSLÅET])","v":{"v":935,"d":"935.00"}},{"$f":"SUBTOTAL(109,Tryk[FAKTISK])","v":{"v":870,"d":"870.00"}},{"$f":"SUBTOTAL(109,Tryk[OVER/UNDER])","v":{"v":65,"d":"65.00"}}]
[]
["Mærkaten Fotografering er i cellen til højre.","Fotografering"]
["Angiv oplysninger i tabellen Fotografering, der starter i cellen til højre.","KATEGORI","ANSLÅET","FAKTISK","OVER/UNDER"]
[null,"Formelle billeder",{"v":1300,"d":"1,300.00"},{"v":1300,"d":"1,300.00"},{"$f":"'Tøj-Reception-Musik-Billeder'!$C52-'Tøj-Reception-Musik-Billeder'!$D52","v":{"v":0,"d":"0.00"}}]
[null,"Ekstra tryk",{"v":25,"d":"25.00"},{"v":25,"d":"25.00"},{"$f":"'Tøj-Reception-Musik-Billeder'!$C53-'Tøj-Reception-Musik-Billeder'!$D53","v":{"v":0,"d":"0.00"}}]
[null,"Fotoalbummer",{"v":100,"d":"100.00"},{"v":100,"d":"100.00"},{"$f":"'Tøj-Reception-Musik-Billeder'!$C54-'Tøj-Reception-Musik-Billeder'!$D54","v":{"v":0,"d":"0.00"}}]
[null,"Videoer",{"v":200,"d":"200.00"},{"v":150,"d":"150.00"},{"$f":"'Tøj-Reception-Musik-Billeder'!$C55-'Tøj-Reception-Musik-Billeder'!$D55","v":{"v":50,"d":"50.00"}}]
[null,"I alt for fotografering",{"$f":"SUBTOTAL(109,Fotografering[ANSLÅET])","v":{"v":1625,"d":"1,625.00"}},{"$f":"SUBTOTAL(109,Fotografering[FAKTISK])","v":{"v":1575,"d":"1,575.00"}},{"$f":"SUBTOTAL(109,Fotografering[OVER/UNDER])","v":{"v":50,"d":"50.00"}}]

{"sheet":"Dekoration-Blomster-Gaver-Rejse","index":3,"n_rows":48,"n_cols":5,"rows_kept":48,"merged":[[8,1,8,4],[9,1,9,4],[18,1,18,4],[27,1,27,4],[34,1,34,4]]}
["Angiv de anslået og faktisk omkostninger for hver kategori i de respektive tabeller i dette regneark. Over/under-beløbet beregnes automatisk. Mærkaten Dekorationer er i cellen til højre. I cellerne i denne kolonne vises en udførlig vejledning i, hvordan man bruger dette regneark. Pil ned for at starte.","Dekorationer*"]
["I tabellen, der starter i cellen til højre, skal du angive omkostningerne til dekorationer ekskl. omkostningerne til blomster. Den næste vejledning er i celle A11.","KATEGORI","ANSLÅET","FAKTISK","OVER/UNDER"]
[null,"Sløjfer til siddepladser",{"v":0,"d":"0.00"},{"v":0,"d":"0.00"},{"$f":"'Dekoration-Blomster-Gaver-Rejse'!$C3-'Dekoration-Blomster-Gaver-Rejse'!$D3","v":{"v":0,"d":"0.00"}}]
[null,"Borddekorationer",{"v":300,"d":"300.00"},{"v":320,"d":"320.00"},{"$f":"'Dekoration-Blomster-Gaver-Rejse'!$C4-'Dekoration-Blomster-Gaver-Rejse'!$D4","v":{"v":-20,"d":"-20.00 "}}]
[null,"Lys",{"v":100,"d":"100.00"},{"v":75,"d":"75.00"},{"$f":"'Dekoration-Blomster-Gaver-Rejse'!$C5-'Dekoration-Blomster-Gaver-Rejse'!$D5","v":{"v":25,"d":"25.00"}}]
[null,"Belysning",{"v":100,"d":"100.00"},{"v":75,"d":"75.00"},{"$f":"'Dekoration-Blomster-Gaver-Rejse'!$C6-'Dekoration-Blomster-Gaver-Rejse'!$D6","v":{"v":25,"d":"25.00"}}]
[null,"Balloner",{"v":200,"d":"200.00"},{"v":250,"d":"250.00"},{"$f":"'Dekoration-Blomster-Gaver-Rejse'!$C7-'Dekoration-Blomster-Gaver-Rejse'!$D7","v":{"v":-50,"d":"-50.00 "}}]
[null,"I alt for dekorationer",{"$f":"SUBTOTAL(109,Dekorationer[ANSLÅET])","v":{"v":700,"d":"700.00"}},{"$f":"SUBTOTAL(109,Dekorationer[FAKTISK])","v":{"v":720,"d":"720.00"}},{"$f":"SUBTOTAL(109,Dekorationer[OVER/UNDER])","v":{"v":-20,"d":"-20.00 "}}]
[null,"* ekskl. blomster"]
[]
["Mærkaten Blomster er i cellen til højre.","Blomster"]
["Angiv oplysninger i tabellen Blomster, der starter i cellen til højre. Den næste vejledning er i celle A20.","KATEGORI","ANSLÅET","FAKTISK","OVER/UNDER"]
[null,"Blomsterbuketter",{"v":500,"d":"500.00"},{"v":450,"d":"450.00"},{"$f":"'Dekoration-Blomster-Gaver-Rejse'!$C13-'Dekoration-Blomster-Gaver-Rejse'!$D13","v":{"v":50,"d":"50.00"}}]
[null,"Knaphulsblomster",{"v":0,"d":"0.00"},{"v":0,"d":"0.00"},{"$f":"'Dekoration-Blomster-Gaver-Rejse'!$C14-'Dekoration-Blomster-Gaver-Rejse'!$D14","v":{"v":0,"d":"0.00"}}]
[null,"Pyntebuketter",{"v":0,"d":"0.00"},{"v":0,"d":"0.00"},{"$f":"'Dekoration-Blomster-Gaver-Rejse'!$C15-'Dekoration-Blomster-Gaver-Rejse'!$D15","v":{"v":0,"d":"0.00"}}]
[null,"Ceremoni",{"v":400,"d":"400.00"},{"v":400,"d":"400.00"},{"$f":"'Dekoration-Blomster-Gaver-Rejse'!$C16-'Dekoration-Blomster-Gaver-Rejse'!$D16","v":{"v":0,"d":"0.00"}}]
[null,"Reception",{"v":0,"d":"0.00"},{"v":0,"d":"0.00"},{"$f":"'Dekoration-Blomster-Gaver-Rejse'!$C17-'Dekoration-Blomster-Gaver-Rejse'!$D17","v":{"v":0,"d":"0.00"}}]
[null,"I alt for blomster",{"$f":"SUBTOTAL(109,Blomster[ANSLÅET])","v":{"v":900,"d":"900.00"}},{"$f":"SUBTOTAL(109,Blomster[FAKTISK])","v":{"v":850,"d":"850.00"}},{"$f":"SUBTOTAL(109,Blomster[OVER/UNDER])","v":{"v":50,"d":"50.00"}}]
[]
["Mærkaten Gaver er i cellen til højre.","Gaver"]
["Angiv oplysninger i tabellen Gaver, der starter i cellen til højre. Den næste vejledning er i celle A29.","KATEGORI","ANSLÅET","FAKTISK","OVER/UNDER"]
[null,"Deltagere",{"v":1000,"d":"1,000.00"},{"v":400,"d":"400.00"},{"$f":"'Dekoration-Blomster-Gaver-Rejse'!$C22-'Dekoration-Blomster-Gaver-Rejse'!$D22","v":{"v":600,"d":"600.00"}}]
[null,"Kommende ægtefælle 1",{"v":150,"d":"150.00"},{"v":200,"d":"200.00"},{"$f":"'Dekoration-Blomster-Gaver-Rejse'!$C23-'Dekoration-Blomster-Gaver-Rejse'!$D23","v":{"v":-50,"d":"-50.00 "}}]
[null,"Kommende ægtefælle 2",{"v":150,"d":"150.00"},{"v":200,"d":"200.00"},{"$f":"'Dekoration-Blomster-Gaver-Rejse'!$C24-'Dekoration-Blomster-Gaver-Rejse'!$D24","v":{"v":-50,"d":"-50.00 "}}]
[null,"Forældre",{"v":25,"d":"25.00"},{"v":25,"d":"25.00"},{"$f":"'Dekoration-Blomster-Gaver-Rejse'!$C25-'Dekoration-Blomster-Gaver-Rejse'!$D25","v":{"v":0,"d":"0.00"}}]
[null,"Oplæsere/andre deltagere",{"v":20,"d":"20.00"},{"v":250,"d":"250.00"},{"$f":"'Dekoration-Blomster-Gaver-Rejse'!$C26-'Dekoration-Blomster-Gaver-Rejse'!$D26","v":{"v":-230,"d":"-230.00 "}}]
[null,"I alt for gaver",{"$f":"SUBTOTAL(109,Gaver[ANSLÅET])","v":{"v":1345,"d":"1,345.00"}},{"$f":"SUBTOTAL(109,Gaver[FAKTISK])","v":{"v":1075,"d":"1,075.00"}},{"$f":"SUBTOTAL(109,Gaver[OVER/UNDER])","v":{"v":270,"d":"270.00"}}]
[]
["Mærkaten Rejse eller Transport er i cellen til højre.","Rejse/transport"]
["Angiv oplysninger i tabellen Rejser, der starter i cellen til højre. Den næste vejledning er i celle A36.","KATEGORI","ANSLÅET","FAKTISK","OVER/UNDER"]
[null,"Limousiner/vogne",{"v":100,"d":"100.00"},{"v":125,"d":"125.00"},{"$f":"'Dekoration-Blomster-Gaver-Rejse'!$C31-'Dekoration-Blomster-Gaver-Rejse'!$D31","v":{"v":-25,"d":"-25.00 "}}]
[null,"Parkering",{"v":0,"d":"0.00"},{"v":40,"d":"40.00"},{"$f":"'Dekoration-Blomster-Gaver-Rejse'!$C32-'Dekoration-Blomster-Gaver-Rejse'!$D32","v":{"v":-40,"d":"-40.00 "}}]
[null,"Taxa",{"v":0,"d":"0.00"},{"v":0,"d":"0.00"},{"$f":"'Dekoration-Blomster-Gaver-Rejse'!$C33-'Dekoration-Blomster-Gaver-Rejse'!$D33","v":{"v":0,"d":"0.00"}}]
[null,"I alt for rejser/transport",{"$f":"SUBTOTAL(109,Rejse[ANSLÅET])","v":{"v":100,"d":"100.00"}},{"$f":"SUBTOTAL(109,Rejse[FAKTISK])","v":{"v":165,"d":"165.00"}},{"$f":"SUBTOTAL(109,Rejse[OVER/UNDER])","v":{"v":-65,"d":"-65.00 "}}]
[]
["Mærkaten Andre udgifter er i cellen til højre.","Andre udgifter"]
["Angiv oplysninger i tabellen Andre udgifter, der starter i cellen til højre.","KATEGORI","ANSLÅET","FAKTISK","OVER/UNDER"]
[null,"Person, der udfører vielse",{"v":0,"d":"0.00"},{"v":0,"d":"0.00"},{"$f":"'Dekoration-Blomster-Gaver-Rejse'!$C38-'Dekoration-Blomster-Gaver-Rejse'!$D38","v":{"v":0,"d":"0.00"}}]
[null,"Gebyr til kirke/ceremonistedet",{"v":40,"d":"40.00"},{"v":55,"d":"55.00"},{"$f":"'Dekoration-Blomster-Gaver-Rejse'!$C39-'Dekoration-Blomster-Gaver-Rejse'!$D39","v":{"v":-15,"d":"-15.00 "}}]
[null,"Bryllupskoordinater",{"v":0,"d":"0.00"},{"v":0,"d":"0.00"},{"$f":"'Dekoration-Blomster-Gaver-Rejse'!$C40-'Dekoration-Blomster-Gaver-Rejse'!$D40","v":{"v":0,"d":"0.00"}}]
[null,"Prøvemiddag",{"v":450,"d":"450.00"},{"v":450,"d":"450.00"},{"$f":"'Dekoration-Blomster-Gaver-Rejse'!$C41-'Dekoration-Blomster-Gaver-Rejse'!$D41","v":{"v":0,"d":"0.00"}}]
[null,"Forlovelsesfest",{"v":20,"d":"20.00"},{"v":50,"d":"50.00"},{"$f":"'Dekoration-Blomster-Gaver-Rejse'!$C42-'Dekoration-Blomster-Gaver-Rejse'!$D42","v":{"v":-30,"d":"-30.00 "}}]
[null,"Showers",{"v":30,"d":"30.00"},{"v":20,"d":"20.00"},{"$f":"'Dekoration-Blomster-Gaver-Rejse'!$C43-'Dekoration-Blomster-Gaver-Rejse'!$D43","v":{"v":10,"d":"10.00"}}]
[null,"Salonaftaler",{"v":45,"d":"45.00"},{"v":46,"d":"46.00"},{"$f":"'Dekoration-Blomster-Gaver-Rejse'!$C44-'Dekoration-Blomster-Gaver-Rejse'!$D44","v":{"v":-1,"d":"-1.00 "}}]
[null,"Polterabender",{"v":0,"d":"0.00"},{"v":0,"d":"0.00"},{"$f":"'Dekoration-Blomster-Gaver-Rejse'!$C45-'Dekoration-Blomster-Gaver-Rejse'!$D45","v":{"v":0,"d":"0.00"}}]
[null,"Brunch",{"v":300,"d":"300.00"},{"v":400,"d":"400.00"},{"$f":"'Dekoration-Blomster-Gaver-Rejse'!$C46-'Dekoration-Blomster-Gaver-Rejse'!$D46","v":{"v":-100,"d":"-100.00 "}}]
[null,"Hotelværelser",{"v":0,"d":"0.00"},{"v":0,"d":"0.00"},{"$f":"'Dekoration-Blomster-Gaver-Rejse'!$C47-'Dekoration-Blomster-Gaver-Rejse'!$D47","v":{"v":0,"d":"0.00"}}]
[null,"Andre udgifter i alt",{"$f":"SUBTOTAL(109,AndreUdgifter[ANSLÅET])","v":{"v":885,"d":"885.00"}},{"$f":"SUBTOTAL(109,AndreUdgifter[FAKTISK])","v":{"v":1021,"d":"1,021.00"}},{"$f":"SUBTOTAL(109,AndreUdgifter[OVER/UNDER])","v":{"v":-136,"d":"-136.00 "}}]